Cogmind - Beta 16 @@@ ROGUE MODE // 2026.01.29 @ 21:36:49 Player: AngelSpirit Result: Destroyed by G-47 Trooper with Particle Gun Performance ------------- Evolutions (0) 0 Regions Visited (3) 600 Robots Destroyed (13) 65 Value Destroyed (218) 218 Prototype IDs (0) 0 Alien Tech Used (0) 0 Bonus (60) 60 TOTAL SCORE: 943 Bonus ------- Follower Combat Kills 60 Cogmind --------- Core Integrity 0/250 Matter 280/300 Energy 124/125 System Corruption 0% Temperature Cool (11) Movement Flying (37) Location -10/Subcaves Parts ------- > --- POWER (1) -------- Light Ion Engine > --- PROPULSION (2) --- Flight Unit Flight Unit > --- UTILITY (2) ------ Seismic Detector Targeting Computer > --- WEAPON (2) ------- Battle Cannon > --- INVENTORY (5) ---- Flight Unit Small Storage Unit Subdweller Beam Cannon Multitool Peak State ------------ > --- POWER ------------ Light Ion Engine > --- PROPULSION ------- Flight Unit Flight Unit > --- UTILITY ---------- Seismic Detector Targeting Computer > --- WEAPON ----------- Subdweller Machine Gun Grenade Launcher > --- INVENTORY -------- Flight Unit Small Storage Unit Light Assault Rifle Multitool [Rating: 8] Favorites ----------- Power Light Ion Engine Engine Light Ion Engine Propulsion Flight Unit Flight Unit Flight Unit Utility Seismic Detector Device Seismic Detector Processor Targeting Computer Weapon Light Assault Rifle Energy Gun Small Laser Ballistic Gun Light Assault Rifle Ballistic Cannon Battle Cannon Launcher Grenade Launcher Special Weapon Mining Laser Build | -11 -10 -10 -10 ------- Run | Yrd Mat Min Sub Slots Evolved . | . . . . Power . | . . . . Propulsion . | . . . . Utility . | . . . . Weapon . | . . . . Parts Attached 15 | 3 7 2 3 Power 1 | . 1 . . Engine 1 | . 1 . . Core . | . . . . Reactor . | . . . . Propulsion 3 | . 3 . . Treads . | . . . . Leg . | . . . . Wheel . | . . . . Hover . | . . . . Flight 3 | . 3 . . Utility 4 | 1 3 . . Device 3 | 1 2 . . Storage . | . . . . Processor 1 | . 1 . . Hackware . | . . . . Protection . | . . . . Artifact . | . . . . Weapon 7 | 2 . 2 3 Energy Gun 2 | 1 . 1 . Energy Cannon . | . . . . Ballistic Gun 2 | 1 . . 1 Ballistic Cannon 1 | . . . 1 Launcher 1 | . . 1 . Special Weapon 1 | . . . 1 Impact Weapon . | . . . . Slashing Weapon . | . . . . Piercing Weapon . | . . . . Special Melee Weapon . | . . . . Unidentified Prototypes . | . . . . Parts Lost . | . . . . Power . | . . . . Propulsion . | . . . . Utility . | . . . . Weapon . | . . . . Highest Loss Streak . | . . . . To Critical Strikes . | . . . . Average Backups 4 | 2 4 5 4 Power . | . . . . Propulsion . | . . 1 1 Utility 1 | . 1 2 1 Weapon 1 | . 2 2 1 Tool/Special . | . . . . Unused Backups 9 | . 3 . 6 Power . | . . . . Propulsion . | . . . . Utility 2 | . . . 2 Weapon 6 | . 3 . 3 Tool/Special 1 | . . . 1 Average Slot Usage (%) 87 | . 84 100 86 Engine 13 | . 12 14 14 Flight 27 | . 24 28 28 Device 14 | . 17 14 14 Processor 11 | . 1 14 14 Energy Gun 5 | . 14 13 . Ballistic Gun 8 | . 14 14 6 Ballistic Cannon 5 | . . . 7 Peak Build Rating 8 | 3 7 7 8 Average Rating 6 | 1 6 7 7 On Entrance 4 | . 3 7 7 Avg Prop Armor Cover (%) . | . . . . Naked Turns . | . . . . Heaviest Build 11 | 3 7 6 11 Greatest Support 8 | 3 8 8 8 Greatest Overweight (x) 1 | . . . 1 Average Overweight (x) . | . . . . Largest Inventory Capacity 5 | 5 5 5 5 Average Capacity 5 | 5 5 5 5 Most Carried 5 | 4 5 5 5 Average Carried 4 | 2 4 4 4 Final Capacity 5 | 5 5 5 5 Final Carried 5 | 3 5 5 4 Class Distribution -------------------- 100% | Mutant Dominant Class ---------------- Mutant | -10/Materials Mutant | -10/Mines Mutant | -10/Subcaves Resources | -11 -10 -10 -10 ----------- Run | Yrd Mat Min Sub Matter Collected 469 | 225 80 87 77 Remotely . | . . . . Salvage Created 348 | 16 247 13 72 Parts 21 | 2 14 2 3 Haulers Intercepted 2 | . 2 . . Recyclers Shooed 1 | . 1 . . Parts Field Recycled . | . . . . Retrieved Matter . | . . . . Parts Self-Destructed 4 | . . . 4 Prevented . | . . . . Parts Restored . | . . . . Kills | -11 -10 -10 -10 ------- Run | Yrd Mat Min Sub Combat Hostiles Destroyed 9 | . 5 3 1 Guns 6 | . 5 . 1 AOE 3 | . . 3 . Classes Destroyed 7 | 1 4 . 2 Tunneler 1 | 1 . . . Hauler 2 | . 2 . . Watcher 1 | . 1 . . Swarmer 6 | . 3 3 . Grunt 2 | . 2 . . Artisan 1 | . . . 1 Subdweller 1 | . . . 1 Best Kill Streak 3 | 1 3 3 1 Combat Bots Only 3 | . 3 3 1 Max Kills in Single Turn 2 | 1 1 2 1 Gunslinging . | . . . . Exploded 2 | . . 2 . Melee . | . . . . Uniques/NPCs Destroyed . | . . . . Combat | -11 -10 -10 -10 -------- Run | Yrd Mat Min Sub Hostile Shots Fired 31 | . 17 6 8 Missed 11 | . 6 2 3 Hits 20 | . 11 4 5 Projectile 20 | . 11 4 5 Critical Strikes 1 | . . 1 . Damage Taken 425 | . 237 102 86 Core 254 | . 169 45 40 Absorbed by Shields . | . . . . Regen/Repaired (Parts) 15 | . 15 . . Core Remaining (%) 100 | 100 . . . Volleys Fired 62 | 1 41 2 18 Largest 2 | 2 2 1 1 Hottest 100 | 60 60 30 100 Shots Fired 102 | 2 80 2 18 Gun 86 | 2 80 . 4 Cannon 10 | . . . 10 Launcher 2 | . . 2 . Special 4 | . . . 4 Kinetic 56 | 1 41 . 14 Thermal 44 | 1 39 . 4 Explosive 2 | . . 2 . Electromagnetic . | . . . . Robot Hit Streak 10 | 1 10 1 4 Robot Miss Streak 3 | . 3 3 1 Penetration Max . | . . . . Secondary Targets . | . . . . Shots Hit Robots 61 | 1 53 1 6 Core Hits 23 | 1 15 4 3 Critical Kills . | . . . . Critical Parts Destroyed . | . . . . Critical Strikes . | . . . . Melee Attacks . | . . . . Impact . | . . . . Slashing . | . . . . Piercing . | . . . . Sneak Attacks . | . . . . Combat Hostiles . | . . . . Follow-up Attacks . | . . . . Damage Inflicted 818 | 12 513 179 114 Guns 600 | 12 513 . 75 Cannons 39 | . . . 39 Explosions 179 | . . 179 . Melee . | . . . . Ramming . | . . . . Kinetic 336 | . 222 . 114 Thermal 303 | 12 291 . . Explosive 179 | . . 179 . Electromagnetic . | . . . . Impact . | . . . . Slashing . | . . . . Piercing . | . . . . Highest Corruption . | . . . . Average Corruption . | . . . . Corruption Purged . | . . . . Corruption Blocked . | . . . . Overload Shots . | . . . . Overflow Damage 42 | . . 42 . Projectiles . | . . . . Explosions 42 | . . 42 . Melee . | . . . . Knockbacks . | . . . . Impact . | . . . . Kinetic . | . . . . Secondary . | . . . . Self-Inflicted Damage 176 | . 114 62 . Shots 3 | . 1 2 . Rammed . | . . . . Targets Rammed . | . . . . Kicked . | . . . . Crushed . | . . . . Highest Temperature 163 | 10 163 . . Average Temperature 54 | 7 55 . . Received Heat Transfer 75 | . 45 . 30 Siege Activations . | . . . . Martial Activations . | . . . . Shielding Activations . | . . . . Robots Disrupted . | . . . . Combat Hostiles . | . . . . Robots Corrupted . | . . . . Combat Hostiles . | . . . . Parts Fried . | . . . . Impact Corruptions . | . . . . Robots Melted . | . . . . Combat Hostiles . | . . . . Parts Melted . | . . . . Heat Transferred 675 | 25 650 . . Parts Sabotaged . | . . . . Parts Stolen . | . . . . Parts Stripped . | . . . . Power Chain Reactions . | . . . . Alert | -11 -10 -10 -10 ------- Run | Yrd Mat Min Sub Maximum Alert Level . | . . . . Low Security (%) 100 | 100 100 100 . Level 1 . | . . . . Level 2 . | . . . . Level 3 . | . . . . Level 4 . | . . . . Level 5 . | . . . . High Security . | . . . . Max Security . | . . . . Peak Influence 190 | 5 190 155 . Initial 38 | . . 38 . Average 104 | . 124 98 . Influence Increases 524 | 5 297 147 75 Destroy 0b10 Robot/C 200 | . 100 100 . Destroy 0b10 Robot/NC 20 | 5 15 . . Destroy Leader 46 | . 26 20 . Allied During Kill 3 | . . 3 . Successful Hack 38 | . 38 . . Disable Machine 15 | . 15 . . Destroy Structure 37 | . 28 9 . Partial Spotted 15 | . . 15 . Lose Combat Pursuer 150 | . 75 . 75 Influence Decreases 524 | 5 198 246 75 Entered New Map 61 | . . 61 . Time Decay 383 | 5 198 105 75 Lost Ally 80 | . . 80 . Squads Dispatched 1 | . 1 . . Investigation 1 | . 1 . . Extermination . | . . . . Reinforcement . | . . . . Assault . | . . . . Garrison . | . . . . Intercept . | . . . . Searches Triggered . | . . . . Construction Impeded . | . . . . Haulers Reinforced . | . . . . Active Scanning Responses . | . . . . Cargo Convoy Interrupts . | . . . . Stealth | -11 -10 -10 -10 --------- Run | Yrd Mat Min Sub Distress Signals . | . . . . Communications Jammed . | . . . . Distress Signals . | . . . . Times Spotted 29 | . 14 6 9 Peak Tracking Total 3 | . 3 2 2 Tactical Retreats 8 | . 2 1 5 Traps | -11 -10 -10 -10 ------- Run | Yrd Mat Min Sub Traps Triggered 1 | . 1 . . Indirectly . | . . . . Trap Hack Attempts . | . . . . Triggered . | . . . . Disarmed . | . . . . Reprogrammed . | . . . . Reused 1 | . . . 1 Traps Extracted . | . . . . Installed 1 | . . . 1 Triggered 1 | . . . 1 Most Traps Carried 1 | . . . 1 Machines | -11 -10 -10 -10 ---------- Run | Yrd Mat Min Sub Machines Disabled 1 | . 1 . . Max in Single Turn 1 | . 1 . . Machines Repaired . | . . . . Machines Dismantled . | . . . . Machines Sabotaged . | . . . . Overloaded Fab Kills . | . . . . Hacking | -11 -10 -10 -10 --------- Run | Yrd Mat Min Sub Machines Accessed 10 | . 9 . 1 Terminals 7 | . 7 . . Fabricators . | . . . . Repair Stations 1 | . 1 . . Recycling Units 1 | . 1 . . Scanalyzers . | . . . . Garrison Access . | . . . . Total Hacks 40 | . 36 . 4 Successful 24 | . 20 . 4 Failed 16 | . 16 . . Catastrophic 1 | . 1 . . Database Lockouts . | . . . . Manual 29 | . 29 . . Terminals 32 | . 32 . . Fabricators . | . . . . Repair Stations 2 | . 2 . . Recycling Units 2 | . 2 . . Scanalyzers . | . . . . Garrison Access . | . . . . Terminal Hacks 11 | . 7 . 4 Record 4 | . . . 4 Part Schematic 2 | . 2 . . Robot Schematic 1 | . 1 . . Robot Analysis 2 | . 2 . . Recall Investigation 1 | . 1 . . Zone Layout 1 | . 1 . . Fabricator Hacks . | . . . . Repair Station Hacks 2 | . 2 . . Scan Component 1 | . 1 . . Repair 1 | . 1 . . Recycling Unit Hacks . | . . . . Scanalyzer . | . . . . Garrison Access Hacks . | . . . . Unauthorized Hacks 11 | . 11 . . Terminals 11 | . 11 . . Track 1 | . 1 . . Botnet 4 | . 4 . . Operators 1 | . 1 . . Skim 5 | . 5 . . Fabricators . | . . . . Repair Stations . | . . . . Recycling Units . | . . . . Scanalyzers . | . . . . Garrison Access . | . . . . Data Cores Recovered . | . . . . Used . | . . . . Hacking Detections 8 | . 8 . . Full Trace Events . | . . . . Feedback Events . | . . . . Feedback Blocked . | . . . . Robot Schematics Acquired 1 | . 1 . . Robots Built . | . . . . Authchips . | . . . . Time . | . . . . Total Robot Build Rating . | . . . . Part Schematics Acquired 2 | . 2 . . Parts Built . | . . . . Authchips . | . . . . Time . | . . . . Total Part Build Rating . | . . . . Part Studies Acquired . | . . . . Parts Repaired 1 | . 1 . . Time 13 | . 13 . . Parts Recycled . | . . . . Recycled Matter . | . . . . Retrieved Matter . | . . . . Retrieved Components . | . . . . Parts Scanalyzed . | . . . . Part Schematics Acquired . | . . . . Parts Damaged . | . . . . Bothacking | -11 -10 -10 -10 ------------ Run | Yrd Mat Min Sub Used RIF Installer . | . . . . Robots Hacked . | . . . . Non-combat . | . . . . Combat . | . . . . Robot Hacks Applied . | . . . . Relay Couplers Released . | . . . . Fabnet Peak Effective % . | . . . . Robots Rewired . | . . . . Allies Hacked . | . . . . Hacks Repelled . | . . . . Allies | -11 -10 -10 -10 -------- Run | Yrd Mat Min Sub Total Allies 4 | . . 4 . Largest Group 4 | . . 4 . Highest-Rated Group 71 | . . 71 . Highest-Rated Ally 31 | . . 31 . Total Orders . | . . . . Ally Attacks 11 | . . 11 . Total Damage 168 | . . 168 . Kills 2 | . . 2 . Allies Corrupted . | . . . . Allies Melted . | . . . . Intel | -11 -10 -10 -10 ------- Run | Yrd Mat Min Sub Active Infowar (turns) 1950 | 2 408 221 1319 Sensors 113 | . 113 . . Seismic 1950 | 2 408 221 1319 Robot Analysis Total 2 | . 2 . . Derelict Logs Recovered . | . . . . Drone Launches . | . . . . Drone Recoveries . | . . . . Exploration | -11 -10 -10 -10 ------------- Run | Yrd Mat Min Sub Turns Passed 2009 | 61 408 221 1319 Spaces Moved 2337 | 40 597 296 1404 Core 76 | 40 36 . . Treads . | . . . . Legs . | . . . . Wheels . | . . . . Hover . | . . . . Flight 2261 | . 561 296 1404 Fastest Speed 37 | 50 37 37 37 Average Speed 37 | 50 37 37 37 Slowest Speed 117 | 50 50 37 117 Overloaded Moves . | . . . . Propulsion Burnouts . | . . . . Robots Hopped 18 | . 4 12 2 Potential Cave-ins . | . . . . Cave-ins Triggered . | . . . . Exploration Rate (%) 46 | 4 84 45 54 Regions Visited 3 Branch Regions 2 Pre-discovered Areas 1 | . . . 1 Known Exits Taken . | . . . . Unknown Exits Taken 3 | 1 1 1 . Scrap Searched 1 | . . . 1 Spaces Dug . | . . . . Terrain Destroyed 50 | . 32 17 1 Melee . | . . . . Projectile 1 | . . . 1 AOE 49 | . 32 17 . Terrain Rammed . | . . . . Walls Destroyed . | . . . . Machines Disabled . | . . . . Actions | -11 -10 -10 -10 --------- Run | Yrd Mat Min Sub Total 3350 | 77 702 391 2180 Wait 920 | 30 50 101 739 Move 2300 | 39 588 272 1401 Hop 16 | . 4 11 1 Pick Up 18 | 4 7 1 6 Fast Attach 8 | 2 5 . 1 Attach 4 | 1 2 . 1 Detach 1 | . . . 1 Swap 5 | . . 3 2 Drop 15 | . 5 1 9 Fire 62 | 1 41 2 18 Melee . | . . . . Ram . | . . . . Kick . | . . . . Crush . | . . . . Escape Stasis . | . . . . Rewire . | . . . . Trap 1 | . . . 1 Miscellaneous . | . . . . Route ------- -11/Scrapyard -10/Materials (discovered 3 exits: [*Mat] / [*Min x2]) -10/Mines (discovered 3 exits: [*Mat x2] / *Sub) -10/Subcaves (discovered 2 exits: [*Mat x2]) History --------- Turn | Location | Event 8 | -11/Scrapyard | Discovered new exit (range 15) 62 | -11/Scrapyard | Entered Materials 192 | -10/Materials | Discovered new exit (range 6) 246 | -10/Materials | Core integrity fell below 50% 308 | -10/Materials | Build established: Mutant 369 | -10/Materials | Discovered new exit (range 6) 391 | -10/Materials | Repaired Flight Unit 439 | -10/Materials | Discovered new exit (range 8) 470 | -10/Materials | Entered Mines 481 | -10/Mines | Discovered new exit (range 6) 485 | -10/Mines | Received a Mining Laser from a helpful Derelict 553 | -10/Mines | Discovered new exit (range 4) 580 | -10/Mines | Assisted by bots powering up and referring to "LRC-V3" 608 | -10/Mines | Assembled infested the area 613 | -10/Mines | Assisted by a Guerilla fighting off Assembled 626 | -10/Mines | Discovered new exit (range 5) 680 | -10/Mines | Lost 4 allies 691 | -10/Mines | Core integrity fell below 20% 691 | -10/Mines | Entered Subcaves 692 | -10/Subcaves | Approached by a straggling Scientist 749 | -10/Subcaves | Visited Clippyterm 750 | -10/Subcaves | Learned location of Extension (-6) 750 | -10/Subcaves | Learned Research security intel 784 | -10/Subcaves | Ambushed by angry Subdweller bent on revenge 1199 | -10/Subcaves | Discovered new exit (range 7) 1297 | -10/Subcaves | Shifting Twisted Machinery released Sub. Power Source 1303 | -10/Subcaves | Shifting Twisted Machinery released Sub. Beam Cannon 1362 | -10/Subcaves | Discovered new exit (range 16) 1542 | -10/Subcaves | Shifting Twisted Machinery released Flamer 1796 | -10/Subcaves | Shifting Twisted Machinery released Sub. Machine Gun 1803 | -10/Subcaves | Shifting Twisted Machinery released Shrapnel Trap 2010 | -10/Subcaves | Destroyed by G-47 Trooper with Particle Gun Last Messages --------------- Sub. Power Source falls loose from the Twisted Machinery. Sub. Beam Cannon falls loose from the Twisted Machinery. 01307_ Dropped Sub. Beam Cannon. 01307_ Acquired Sub. Beam Cannon. 01362_ EXIT=FOUND Flamer falls loose from the Twisted Machinery. 01746_ Subatomizers dissect the Disposable Heat Sink, destroying it. Sub. Machine Gun falls loose from the Twisted Machinery. Shrapnel Trap falls loose from the Twisted Machinery. 01805_ Dropped Battle Rifle. 01806_ Acquired Shrapnel Trap. 01818_ Acquired 21 matter. 01828_ Dropped Shrapnel Trap. 01829_ Installed Shrapnel Trap. 01854_ Acquired 9 matter. Map ----- +----------------------------------------------------+ | ????????????????????????????????????????????? | | ????????????????????????????????????????????? | | ????????????????????????????????????????????? | | ????????????????????????????????????????##??? | | ???????????????????????####???????????## ??? | | ???????????????????##### ####???????# ?? | | ?????????????????### # ##?????? ?? | | ????????????????## #?????# ?? | | ????????????????# # ## < ##?????" #? | | ????????????????## ### ##????## " #?? | | ????????????????## #?# ##???### " #### | | ????????????????# ##?# ####?##" #?# # | | ????????????????## #?## ### "" #??# | | ????????????????# ### "" ""##?# | | ????????????????## #### "" "### | | ???????????????### ## g """" | | ??????????????## ; [" ##" " | | ??????????????# ##" " | | ??????????????# ; ####""" " ## | | ??????????????# ;;##### [ "" ### | | ??????????????## ### ######?# | | ???????????????## ##?# ##??????? | | ????????????????# ##?# ""###???????? | | ????????????????# ##??## "##?????????? | | ????????????????# ##????##"#??????????? | | ????????????????# @ ##??????#####????????? | | ????????????????# ##???????##"##???????? | | ????????????????# # #???????#"" #???????? | | ???????????????# ## #?????###" #???????? | | ???????????????## ### ##?##### " #???????? | | ????????????????#### ### "" #???????? | | ??????????????##### " #???????? | | ??????????????# ## ## ""&! #???????? | | ??????????????# % "%!& #???????? | | ??????????????# [ ## " ##???????? | | ??????????????# ## # %#####"] ##???????? | | ??????????????## ### ## ## ##??????? | | ???????????????#### % ### #??????? | | ??????????????????##### # ##" #####??????? | | ?????????????????????# #### ## ##?????????? | | ?????????????????????# ##?# #?????????? | | ?????????????????????## ### ## #%##?????????? | | ??????????????????????## ####### ##?????????? | | ??????????????????????## #????# #?????????? | | ?????????????????????## ##?#### ##?????????? | | ????????????????????## ##??# # # ##?????????? | | ????????????????????# ##???# #?????????? | | ????????????????????#|#????# # ##?????????? | | ????????????????????#%##???# #####??????????? | | ????????????????????## ##??###??????????????? | +----------------------------------------------------+ Best States ------------- Heat Dissipation 25 Energy Generation 10 Energy Capacity 125 Matter Stores 300 Matter Capacity 300 Sight Range 16 Robot Scan Range 14 Terrain Scan Density 10 Evasion (%) 62 Targeting Accuracy 5 Item Schematics ----------------- ECM Suite | -10/Materials | Hacked Assault Rifle | -10/Materials | Hacked Robot Schematics ------------------ M-13 Machinist | -10/Materials | Hacked Fabricated ------------ Nothing Repaired ---------- Flight Unit | 25% | -10/Materials Studied --------- None Alien Tech Used ----------------- None Achievements -------------- None Challenges ------------ None Game ------ Seed AlphaDirectedCapacitor Manual? 0 Play Time 00:25:07 Cumulative 494.5 hours Start 2026.01.29 @ 20:14:47 End 2026.01.29 @ 21:36:49 Sessions 3 Manual Loads 0 Difficulty Rogue Special Mode None Game No. 170 Rogue 170 Adventurer 0 Explorer 0 Win Type - Total 15 Types 7/0/4/1/0/0/0/1/0/2 Lore% 90 Gallery% 85 Achievement% 73 Wizard Run 0 Options --------- Layout 1 ASCII 0 Keyboard 0 Movement Mouse Keybinds 0 Fullscreen 2 Font 32/SmallcapsGlow Map View 50x35 Zoom Use 0% Tactical HUD 1 Map Filters NONE Filters NONE Steam 1 RUN: b0e66ec9-bf6b-4e81-b406-2f0b1c45fbaf